bitfinex/quotes_BTCUSD_20251207
["timestamp","ask_amount","ask_price","bid_price","bid_amount"]
[1765100960971,0.71604302,89195.0,89194.0,0.00239309]
[1765100961826,0.71255302,89195.0,89194.0,0.00239309]
[1765100962160,0.70178502,89195.0,89194.0,0.00239309]
[1765100962335,1.10178502,89195.0,89194.0,0.00239309]
[1765100962527,1.10527502,89195.0,89194.0,0.00239309]
[1765100963031,1.10527502,89195.0,89175.0,0.22427637]
[1765100963032,1.10527502,89195.0,89144.0,0.06048978]
[1765100963033,0.22433848,89151.0,89144.0,0.06048978]
[1765100963247,0.22433848,89151.0,89140.0,0.0002]
[1765100963248,0.24205848,89151.0,89140.0,0.0002]
[1765100964847,0.24505848,89151.0,89150.0,0.1112]
[1765100965038,0.24205848,89151.0,89150.0,0.1002]
[1765100965462,0.24405848,89151.0,89150.0,0.1032]
[1765100966062,0.24305848,89151.0,89150.0,0.1022]
[1765100966239,1.65453214,89151.0,89150.0,0.1002]
[1765100966441,1.65553214,89151.0,89150.0,0.1012]
[1765100966665,1.65714501,89151.0,89150.0,0.1012]
[1765100967442,1.65714501,89151.0,89150.0,0.1032]
[1765100967443,1.63942501,89151.0,89150.0,0.1032]
[1765100967648,0.83256535,89151.0,89150.0,0.1032]
[1765100967866,0.83256535,89151.0,89150.0,0.1012]
[1765100968069,0.83356535,89151.0,89150.0,0.1022]
[1765100968285,0.83256535,89151.0,89150.0,0.1012]
[1765100968634,0.83456535,89151.0,89150.0,0.10289887]
[1765100968758,0.81684535,89151.0,89150.0,0.10289887]
[1765100968961,0.83456535,89151.0,89150.0,0.10289887]
[1765100969400,0.68313835,89151.0,89150.0,0.10289887]
[1765100969667,0.70085835,89151.0,89150.0,0.10289887]
[1765100970029,0.68313835,89151.0,89150.0,0.10289887]
[1765100970238,1.10085835,89151.0,89150.0,0.10289887]
[1765100972501,1.21056341,89151.0,89150.0,0.10289887]
[1765100973106,1.22653698,89151.0,89150.0,0.10289887]
[1765100973306,1.24425698,89151.0,89150.0,0.10289887]
[1765100973513,1.22653698,89151.0,89150.0,0.10289887]
[1765100973721,1.24425698,89151.0,89150.0,0.10289887]
[1765100974955,1.13455192,89151.0,89150.0,0.10289887]
[1765100977958,1.11683192,89151.0,89150.0,0.10289887]
[1765100978170,1.13455192,89151.0,89150.0,0.10289887]
[1765100978380,1.14493591,89151.0,89150.0,0.10289887]
[1765100983154,1.14493591,89151.0,89150.0,0.1029963]
[1765100983658,1.19722402,89151.0,89150.0,0.1029963]
[1765100984452,0.79722402,89151.0,89150.0,0.1029963]
[1765100984815,0.74493591,89151.0,89150.0,0.1029963]
[1765100986595,0.72721591,89151.0,89150.0,0.1029963]
[1765100986769,0.74493591,89151.0,89150.0,0.1029963]
[1765100989550,0.72721591,89151.0,89150.0,0.1029963]
[1765100989789,0.71694091,89151.0,89150.0,0.1029963]
[1765100989978,0.58005534,89151.0,89150.0,0.1029963]
[1765100990653,0.56072247,89151.0,89150.0,0.1029963]
[1765100990855,0.35410399,89151.0,89150.0,0.1029963]
[1765100991698,0.35415051,89151.0,89150.0,0.1029963]
[1765100991901,0.01343051,89151.0,89150.0,0.1029963]
[1765100992112,0.003,89151.0,89150.0,0.1428263]
[1765100992304,0.01343051,89151.0,89150.0,0.1428263]
[1765100992909,0.01243051,89151.0,89150.0,0.1418263]
[1765100993167,0.01243051,89151.0,89150.0,0.1408263]
[1765100993168,0.01043051,89151.0,89150.0,0.1408263]
[1765100993389,0.01243051,89151.0,89150.0,0.1448263]
[1765100995746,0.01243051,89151.0,89150.0,0.1207963]
[1765100996249,0.002,89151.0,89150.0,0.1207963]
[1765100996612,0.002,89151.0,89150.0,0.1049963]
[1765100997875,0.01243051,89151.0,89150.0,0.1049963]
[1765100998574,0.002,89151.0,89150.0,0.1049963]
[1765101002493,0.002,89151.0,89150.0,0.32933729]
[1765101005592,0.002,89151.0,89150.0,0.1049963]
[1765101011101,0.002,89151.0,89150.0,0.1430763]
[1765101011271,0.002,89151.0,89150.0,0.16551039]
[1765101012566,0.001,89151.0,89150.0,0.16251039]
[1765101012821,0.001,89151.0,89150.0,0.1400763]
[1765101013030,0.18135352,89160.0,89159.0,0.22431835]
[1765101013202,0.01121528,89164.0,89161.0,0.01121566]
[1765101013388,0.01121541,89163.0,89159.0,0.2247437]
[1765101013611,0.01121541,89163.0,89159.0,0.22431835]
[1765101013834,0.01121528,89164.0,89160.0,0.23552951]
[1765101014042,0.23552014,89165.0,89161.0,0.01121566]
[1765101014241,0.002,89164.0,89161.0,0.001]
[1765101014878,0.01121541,89163.0,89158.0,0.01237]
[1765101015102,0.002,89160.0,89159.0,0.001]
[1765101015604,0.23553052,89161.0,89157.0,0.01121616]
[1765101016119,0.01121566,89161.0,89160.0,0.001]
[1765101016576,0.01121566,89161.0,89158.0,0.01121604]
[1765101016995,0.004,89161.0,89158.0,0.01121604]
[1765101017172,0.004,89161.0,89158.0,0.23553536]
[1765101017374,0.002,89161.0,89158.0,0.23553536]
[1765101017674,0.004,89161.0,89160.0,0.22431583]
[1765101018040,0.002,89161.0,89158.0,0.23653536]
[1765101018242,0.002,89161.0,89158.0,0.01221604]
[1765101018485,0.004,89161.0,89160.0,0.001]
[1765101018991,0.002,89161.0,89160.0,0.001]
[1765101019198,0.01121554,89162.0,89159.0,0.01121591]
[1765101019401,0.002,89161.0,89160.0,0.00139497]
[1765101019616,0.004,89161.0,89160.0,0.00139497]
[1765101019843,0.002,89161.0,89160.0,0.00139497]
[1765101020044,0.002,89161.0,89160.0,0.00239497]
[1765101020246,0.002,89161.0,89160.0,0.00139497]
[1765101022272,0.004,89161.0,89160.0,0.04209497]
[1765101027292,0.004,89161.0,89160.0,0.06452655]
[1765101027463,0.004,89161.0,89160.0,0.04209497]
[1765101029226,0.002,89161.0,89160.0,0.04109497]
[1765101029392,0.003,89161.0,89160.0,0.04709497]
[1765101030527,0.001,89161.0,89160.0,0.04609497]
[1765101030706,0.004,89161.0,89160.0,0.05909497]
[1765101034550,0.004,89161.0,89160.0,0.08152655]
[1765101036936,0.22831332,89161.0,89160.0,0.04182655]
[1765101037134,0.22831332,89161.0,89160.0,0.01939497]
[1765101038163,0.004,89161.0,89160.0,0.01939497]
[1765101038378,0.22831332,89161.0,89160.0,0.01939497]
[1765101038973,0.22831332,89161.0,89160.0,0.04699497]
[1765101038974,0.004,89161.0,89160.0,0.04699497]
[1765101039167,0.004,89161.0,89160.0,0.07146497]
[1765101040252,0.004,89161.0,89160.0,0.04699497]
[1765101040480,0.004,89161.0,89160.0,0.07146497]
[1765101041394,0.004,89161.0,89160.0,0.2957808]
[1765101056015,0.004,89161.0,89160.0,0.35830379]
[1765101062395,0.004,89161.0,89160.0,0.2957808]
[1765101062798,0.004,89161.0,89160.0,0.3135008]
[1765101068994,0.004,89161.0,89160.0,0.2957808]
[1765101069198,0.004,89161.0,89160.0,0.3134608]
[1765101079428,0.004,89161.0,89160.0,0.37598379]
[1765101080016,0.004,89161.0,89160.0,0.43647357]
[1765101080212,0.004,89161.0,89160.0,0.37598379]
[1765101080621,0.03367504,89185.0,89184.0,0.22425547]
[1765101081211,0.03367504,89185.0,89165.0,0.00024304]
[1765101081212,1.74837674,89166.0,89165.0,0.00024304]
[1765101081507,1.36030085,89166.0,89165.0,0.00024304]
[1765101081706,0.94834735,89166.0,89165.0,0.00034047]
[1765101081906,0.95196176,89166.0,89165.0,0.00034047]
[1765101082164,0.98203626,89166.0,89165.0,0.00034047]
[1765101082318,0.95196176,89166.0,89165.0,0.00034047]
[1765101083681,0.96696176,89166.0,89165.0,0.00234047]
[1765101084211,1.08166682,89166.0,89165.0,0.00334047]
[1765101085529,1.48166682,89166.0,89165.0,0.00334047]
[1765101091517,1.45759641,89166.0,89165.0,0.00334047]
[1765101094516,1.45753598,89166.0,89165.0,0.00334047]
[1765101098489,1.48149947,89166.0,89165.0,0.00334047]
[1765101105285,0.22433848,89151.0,89150.0,0.1002]
[1765101105505,0.33403483,89151.0,89150.0,0.10029746]
[1765101105883,0.36772798,89151.0,89150.0,0.10029746]
[1765101106307,0.37872798,89151.0,89150.0,0.10129746]
[1765101106525,0.38172798,89151.0,89150.0,0.10229746]
[1765101106967,0.28975163,89151.0,89150.0,0.10229746]
[1765101107282,0.27203163,89151.0,89150.0,0.10229746]
[1765101107489,0.28975163,89151.0,89150.0,0.10229746]
[1765101109418,0.30017917,89151.0,89150.0,0.10229746]
[1765101110765,0.28245917,89151.0,89150.0,0.10229746]
[1765101111262,0.30017917,89151.0,89150.0,0.10275327]
[1765101114433,0.07584069,89151.0,89150.0,0.10275327]
[1765101118349,0.39884069,89151.0,89150.0,0.10275327]
[1765101118481,0.53262467,89151.0,89150.0,0.10275327]
[1765101119581,1.26986967,89151.0,89150.0,0.10275327]
[1765101120957,1.31007736,89151.0,89150.0,0.10275327]
[1765101121319,1.26986967,89151.0,89150.0,0.10275327]
[1765101121742,1.25586967,89151.0,89150.0,0.10075327]
[1765101121945,1.27286967,89151.0,89150.0,0.10275327]
[1765101122520,1.67286967,89151.0,89150.0,0.10275327]
[1765101123107,1.67886967,89151.0,89150.0,0.10375327]
[1765101124462,1.70894911,89151.0,89150.0,0.10375327]
[1765101124838,1.21333105,89151.0,89150.0,0.10375327]
[1765101125428,1.18325161,89151.0,89150.0,0.10375327]
[1765101129780,0.76553161,89151.0,89150.0,0.10375327]
[1765101129985,0.28103163,89151.0,89150.0,0.11962327]
[1765101130243,0.023,89151.0,89150.0,0.10375327]
[1765101130591,0.017,89151.0,89150.0,0.10275327]
[1765101130787,0.03368895,89152.0,89151.0,0.22433848]
[1765101130996,0.005,89151.0,89150.0,0.10129746]
[1765101131225,0.008,89151.0,89150.0,0.10229746]
[1765101132020,0.008,89151.0,89150.0,0.14014746]
[1765101132340,0.003,89151.0,89150.0,0.13914746]
[1765101132833,0.005,89151.0,89150.0,0.13914746]
[1765101134207,0.005,89151.0,89150.0,0.10129746]
[1765101134610,0.005,89151.0,89150.0,0.13914746]
[1765101134827,0.005,89151.0,89150.0,0.11657746]
[1765101138279,0.005,89151.0,89150.0,0.11607746]
[1765101138649,0.005,89151.0,89150.0,0.11653327]
[1765101139299,0.005,89151.0,89150.0,0.10125327]
[1765101147116,0.08398187,89151.0,89150.0,0.10125327]
[1765101147843,0.003,89151.0,89150.0,0.10125327]
[1765101148051,0.22433847,89152.0,89150.0,0.10025327]
[1765101148246,0.003,89151.0,89150.0,0.10079746]
[1765101148828,0.22433847,89152.0,89150.0,0.09979746]
[1765101149411,0.006,89151.0,89150.0,0.10179746]
[1765101149628,0.07282994,89151.0,89150.0,0.10179746]
[1765101149760,0.39582994,89151.0,89150.0,0.10179746]
[1765101150162,0.38982994,89151.0,89150.0,0.10079746]
[1765101150733,0.39182994,89151.0,89150.0,0.10079746]
[1765101151057,0.39682994,89151.0,89150.0,0.10179746]
[1765101152295,0.40726797,89151.0,89150.0,0.10179746]
[1765101152960,0.34043803,89151.0,89150.0,0.10179746]
[1765101154234,0.01744168,89151.0,89150.0,0.10179746]
[1765101154449,0.02472,89151.0,89150.0,0.10179746]
[1765101154655,0.02472,89151.0,89150.0,0.10225327]
[1765101154859,0.007,89151.0,89150.0,0.10225327]
[1765101156397,0.007,89151.0,89150.0,0.38687835]
[1765101156608,0.007,89151.0,89150.0,0.36444426]
[1765101160487,0.23133848,89151.0,89150.0,0.10225327]
[1765101160868,0.24178992,89151.0,89150.0,0.10225327]
[1765101165911,0.01745144,89151.0,89150.0,0.10225327]
[1765101166234,0.007,89151.0,89150.0,0.11761327]
[1765101166396,0.007,89151.0,89150.0,0.14120327]
[1765101166597,0.007,89151.0,89150.0,0.11761327]
[1765101169507,0.007,89151.0,89150.0,0.14120327]
[1765101172821,0.007,89151.0,89150.0,0.11761327]
[1765101173389,0.23133848,89151.0,89150.0,0.11761327]
[1765101173611,0.32274201,89151.0,89150.0,0.10225327]
[1765101176781,2.64574201,89151.0,89150.0,0.10225327]
[1765101176998,1.03997927,89151.0,89150.0,0.10225327]
[1765101177219,1.00989983,89151.0,89150.0,0.10225327]
[1765101177442,1.40989983,89151.0,89150.0,0.10225327]
[1765101177647,1.40789983,89151.0,89150.0,0.10125327]
[1765101177817,1.40289983,89151.0,89150.0,0.10025327]
[1765101178022,1.40989983,89151.0,89150.0,0.10125327]
[1765101178391,1.42189983,89151.0,89150.0,0.10325327]
[1765101178608,1.42189983,89151.0,89150.0,0.10225327]
[1765101178609,1.41489983,89151.0,89150.0,0.10225327]
[1765101178809,1.42089983,89151.0,89150.0,0.10325327]
[1765101179282,1.41489983,89151.0,89150.0,0.10225327]
[1765101179803,1.40289983,89151.0,89150.0,0.10025327]
[1765101180219,2.54736364,89141.0,89111.0,0.01135]
[1765101180415,2.54736364,89141.0,89107.0,0.01122246]
[1765101180416,2.63762857,89141.0,89107.0,0.01122246]
[1765101180717,2.63762857,89141.0,89108.0,0.02244467]
[1765101180876,2.64897857,89141.0,89106.0,0.01135]
[1765101181088,3.04897857,89141.0,89108.0,0.033667]
[1765101181505,3.05397857,89141.0,89140.0,0.0012]
[1765101181852,3.05397857,89141.0,89140.0,0.0032]
[1765101181853,3.17268363,89141.0,89140.0,0.0032]
[1765101182190,3.20269031,89141.0,89140.0,0.0032]
[1765101182798,3.19040363,89141.0,89140.0,0.0032]
[1765101183712,3.16945263,89141.0,89140.0,0.0032]
[1765101183912,3.16445263,89141.0,89140.0,0.0022]
[1765101184146,3.15545263,89141.0,89140.0,0.0012]
[1765101184353,3.17545263,89141.0,89140.0,0.0022]
[1765101184762,3.15545263,89141.0,89140.0,0.0002]
[1765101184875,3.15545263,89141.0,89140.0,0.0012]
[1765101185095,3.17245263,89141.0,89140.0,0.0022]
[1765101185300,3.20242224,89141.0,89140.0,0.0022]
[1765101185723,3.20242224,89141.0,89140.0,0.00250393]
[1765101187382,3.17245263,89141.0,89140.0,0.00250393]
[1765101188768,3.17240128,89141.0,89140.0,0.00250393]
[1765101188950,2.80503728,89141.0,89140.0,0.00250393]
[1765101189165,1.30848422,89141.0,89140.0,0.00250393]
[1765101189393,1.1645154,89141.0,89140.0,0.00250393]
[1765101189593,1.2354404,89141.0,89140.0,0.00250393]
[1765101189797,0.7074994,89141.0,89140.0,0.00250393]
[1765101190032,0.69710096,89141.0,89140.0,0.00250393]
[1765101190231,0.63782096,89141.0,89140.0,0.00250393]
[1765101190391,0.29710096,89141.0,89140.0,0.00250393]
[1765101190591,0.30882096,89141.0,89140.0,0.00150393]
[1765101190840,0.29782096,89141.0,89140.0,0.00050393]
[1765101191015,0.30182096,89141.0,89140.0,0.00150393]
[1765101191221,0.30882096,89141.0,89140.0,0.00150393]
[1765101191555,0.30482096,89141.0,89140.0,0.00050393]
[1765101191747,0.30682096,89141.0,89140.0,0.00150393]
[1765101192316,0.29982096,89141.0,89140.0,0.00150393]
[1765101192526,0.30182096,89141.0,89140.0,0.00150393]
[1765101193130,0.28410096,89141.0,89140.0,0.00150393]
[1765101193334,0.30182096,89141.0,89140.0,0.00150393]
[1765101196285,0.31304002,89141.0,89140.0,0.00150393]
[1765101198494,0.29532002,89141.0,89140.0,0.00150393]
[1765101198819,0.31304002,89141.0,89140.0,0.00150393]
[1765101201967,1.45374008,89141.0,89140.0,0.00150393]
[1765101202534,1.35445058,89141.0,89140.0,0.00150393]
[1765101202922,1.3544511,89141.0,89140.0,0.00150393]
[1765101203470,1.7544511,89141.0,89140.0,0.00150393]
[1765101205322,1.77846624,89141.0,89140.0,0.00150393]
[1765101207249,1.81851824,89141.0,89140.0,0.00150393]
[1765101207447,1.9282233,89141.0,89140.0,0.00150393]
[1765101207701,1.8861713,89141.0,89140.0,0.00150393]
[1765101208023,1.8861713,89141.0,89102.0,0.01122309]
[1765101208024,0.01122258,89106.0,89102.0,0.01122309]
[1765101208228,0.05573732,89105.0,89102.0,0.23574503]
[1765101208890,0.05573732,89105.0,89104.0,0.00109465]
[1765101209521,0.05773732,89105.0,89104.0,0.00109465]
[1765101209818,0.05773732,89105.0,89104.0,0.01728465]
[1765101209978,0.05873732,89105.0,89104.0,0.24274146]
[1765101210197,0.05873732,89105.0,89104.0,0.01828465]
[1765101210424,0.05873732,89105.0,89104.0,0.24274146]
[1765101210648,0.05673732,89105.0,89104.0,0.26652146]
[1765101211020,0.003,89105.0,89104.0,0.26652146]
[1765101212461,0.003,89105.0,89104.0,0.00209465]
[1765101214616,0.003,89105.0,89104.0,0.22655146]
[1765101215059,0.003,89105.0,89104.0,0.00209465]
[1765101217734,0.003,89105.0,89104.0,0.22655146]
[1765101217973,0.003,89105.0,89104.0,0.27828146]
[1765101223141,0.003,89105.0,89104.0,0.01385465]
[1765101223315,0.003,89105.0,89104.0,0.00209465]
[1765101224343,0.003,89105.0,89104.0,0.05363465]
[1765101227758,0.003,89105.0,89104.0,0.03032465]
[1765101229999,0.003,89105.0,89104.0,0.05363465]
[1765101231279,0.003,89105.0,89104.0,0.07608033]
[1765101231503,0.003,89105.0,89104.0,0.05363465]
[1765101233949,0.003,89105.0,89104.0,0.03032465]
[1765101234579,0.003,89105.0,89104.0,0.01391465]
[1765101240089,0.003,89105.0,89104.0,0.27663146]
[1765101247496,0.003,89105.0,89104.0,0.35687445]
[1765101248219,0.002,89105.0,89104.0,0.35587445]
[1765101248634,0.003,89105.0,89104.0,0.35787445]
[1765101248764,0.001,89105.0,89104.0,0.35787445]
[1765101249156,0.004,89105.0,89104.0,0.35787445]
[1765101257371,0.004,89105.0,89104.0,0.01772]
[1765101257578,0.004,89105.0,89104.0,0.05661568]
[1765101257998,0.004,89105.0,89104.0,0.28107249]
[1765101258223,0.004,89105.0,89104.0,0.25862681]
[1765101259612,0.004,89105.0,89104.0,0.60631681]
[1765101260856,0.003,89105.0,89104.0,0.60631681]
[1765101261103,0.004,89105.0,89104.0,0.60631681]
[1765101261532,0.001,89105.0,89104.0,0.60631681]
[1765101261707,0.003,89105.0,89104.0,0.62131681]
[1765101274552,0.003,89105.0,89104.0,0.64377681]
[1765101274762,0.003,89105.0,89104.0,0.62131681]
[1765101283407,0.01772,89141.0,89138.0,0.22437119]
[1765101283408,0.01044626,89140.0,89138.0,0.22437119]
[1765101283567,0.00161287,89140.0,89138.0,0.22437119]
[1765101283992,0.00161287,89140.0,89138.0,0.23558974]
[1765101284602,0.00661287,89140.0,89138.0,0.23658974]
[1765101284968,0.02261287,89140.0,89138.0,0.23858974]
[1765101287741,0.02261287,89140.0,89139.0,0.03927]
[1765101287742,0.021,89140.0,89139.0,0.03927]
[1765101288729,0.01121692,89151.0,89148.0,0.0112173]
[1765101288961,0.01121742,89147.0,89144.0,0.22435609]
[1765101289160,0.01121742,89147.0,89143.0,0.23557419]
[1765101289361,0.01121793,89143.0,89140.0,0.0112183]
[1765101289723,0.05573732,89142.0,89139.0,0.01221843]
[1765101289894,0.08055732,89142.0,89139.0,0.01221843]
[1765101290105,0.003,89140.0,89139.0,0.01321843]
[1765101290283,0.003,89140.0,89139.0,0.01221843]
[1765101290479,0.02782,89140.0,89139.0,0.01221843]
[1765101290686,0.02482,89140.0,89139.0,0.01121843]
[1765101290884,0.02482,89140.0,89139.0,0.001]
[1765101291488,0.0490383,89140.0,89139.0,0.001]
[1765101291692,0.0520383,89140.0,89139.0,0.002]
[1765101294587,0.016,89140.0,89139.0,0.22636868]
[1765101294791,0.016,89140.0,89139.0,0.002]
[1765101307839,0.28196903,89140.0,89139.0,0.002]
[1765101308055,0.05760287,89140.0,89139.0,0.002]
[1765101308258,0.28196903,89140.0,89139.0,0.002]
[1765101315422,0.29241132,89140.0,89139.0,0.002]
[1765101320131,0.26755132,89140.0,89139.0,0.002]
[1765101320474,0.29144132,89140.0,89139.0,0.002]
[1765101324880,0.30960659,89140.0,89139.0,0.002]
[1765101325347,0.34326755,89140.0,89139.0,0.002]
[1765101325771,0.33026755,89140.0,89139.0,0.001]
[1765101326168,0.34626755,89140.0,89139.0,0.003]
[1765101326999,0.34326755,89140.0,89139.0,0.002]
[1765101327202,0.34726755,89140.0,89139.0,0.003]
[1765101327822,0.34326755,89140.0,89139.0,0.002]
[1765101328025,0.34726755,89140.0,89139.0,0.003]
[1765101331441,0.36498755,89140.0,89139.0,0.003]
[1765101332576,0.34682228,89140.0,89139.0,0.003]
[1765101334089,0.66982228,89140.0,89139.0,0.003]
[1765101334307,0.69389325,89140.0,89139.0,0.003]
[1765101334954,0.69389226,89140.0,89139.0,0.003]
[1765101337852,1.09389226,89140.0,89139.0,0.003]
[1765101338055,1.20359732,89140.0,89139.0,0.003]
[1765101338422,1.23366136,89140.0,89139.0,0.003]
[1765101338756,1.20359732,89140.0,89139.0,0.003]
[1765101338963,1.18759732,89140.0,89139.0,0.001]
[1765101339176,0.23564648,89117.0,89113.0,0.0112217]
[1765101339381,0.25336648,89117.0,89113.0,0.0112217]
[1765101339752,0.0112217,89113.0,89110.0,0.01122208]
[1765101340112,0.01122183,89112.0,89106.0,0.01122258]
[1765101340310,0.01122183,89112.0,89109.0,0.2357262]
[1765101340667,0.24832918,89111.0,89109.0,6.214e-05]
[1765101341075,0.01122183,89112.0,89109.0,6.214e-05]
[1765101341489,0.002,89112.0,89109.0,0.01528435]
[1765101341685,0.06695902,89113.0,89109.0,0.23572665]
[1765101341886,0.06695902,89113.0,89110.0,0.01122208]
[1765101342092,0.004,89111.0,89110.0,0.01122208]
[1765101342295,0.05573732,89113.0,89110.0,0.01122208]
[1765101342633,0.05673732,89113.0,89110.0,0.01522208]
[1765101343461,0.05673732,89113.0,89111.0,0.2244376]
[1765101343581,0.003,89112.0,89111.0,0.2244376]
[1765101343785,0.05673732,89113.0,89111.0,0.2244376]
[1765101344018,0.05673732,89113.0,89110.0,0.23966145]
[1765101344225,0.05973732,89113.0,89110.0,0.23966145]
[1765101344429,0.05573732,89113.0,89110.0,0.23566145]
[1765101344805,0.003,89112.0,89110.0,0.23566145]
[1765101345007,0.05573732,89113.0,89110.0,0.23566145]
[1765101345245,0.01085,89114.0,89111.0,0.23565945]
[1765101345451,0.003,89113.0,89112.0,0.23565624]
[1765101346101,0.003,89113.0,89112.0,0.01122183]
[1765101346547,0.001,89114.0,89113.0,0.22443414]
[1765101346849,0.01122132,89116.0,89113.0,0.0112217]
[1765101347149,0.0289412,89117.0,89113.0,0.23565426]
[1765101347442,0.01122132,89116.0,89113.0,0.0112217]
[1765101347759,0.002,89113.0,89112.0,0.001]
[1765101347964,0.23565279,89115.0,89112.0,0.001]
[1765101348172,0.01122145,89115.0,89112.0,0.001]
[1765101348558,0.01122132,89116.0,89112.0,0.01222183]
[1765101349077,0.01122132,89116.0,89112.0,0.01122183]
[1765101349381,0.01122132,89116.0,89113.0,0.0112217]
[1765101349690,0.001,89116.0,89113.0,0.0122217]
[1765101349884,0.25336696,89117.0,89113.0,0.0112217]
[1765101350434,0.001,89116.0,89113.0,0.0112217]
[1765101350609,0.003,89116.0,89113.0,0.0112217]
[1765101350759,0.01772,89117.0,89114.0,0.23565137]
[1765101351165,0.02072,89117.0,89115.0,0.22442733]
[1765101351364,0.02072,89117.0,89113.0,0.0122217]
[1765101351607,0.01872,89117.0,89114.0,0.01122158]
[1765101352327,0.01772,89117.0,89114.0,0.01122158]
[1765101352845,0.01872,89117.0,89114.0,0.01222158]
[1765101353050,0.01872,89117.0,89114.0,0.23665149]
[1765101353187,0.01872,89117.0,89114.0,0.01222158]
[1765101354031,0.002,89116.0,89114.0,0.01222158]
[1765101354292,0.01872,89117.0,89114.0,0.01222158]
[1765101354630,0.02072,89117.0,89114.0,0.01222158]
[1765101354846,0.01872,89117.0,89114.0,0.01222158]
[1765101355064,0.0299412,89117.0,89114.0,0.01222158]
[1765101355230,0.002,89116.0,89114.0,0.01222158]
[1765101355432,0.0289412,89117.0,89114.0,0.01122158]
[1765101355635,0.01772,89117.0,89114.0,0.23565153]
[1765101355841,0.001,89116.0,89114.0,0.23665153]
[1765101356242,0.01972,89117.0,89114.0,0.23565153]
[1765101356659,0.003,89117.0,89115.0,0.26942037]
[1765101356979,0.003,89117.0,89115.0,0.24697746]
[1765101356980,0.001,89117.0,89115.0,0.24697746]
[1765101357180,0.001,89117.0,89116.0,0.04499265]
[1765101357547,0.001,89117.0,89116.0,0.06131265]
[1765101357797,0.003,89117.0,89116.0,0.06131265]
[1765101358168,0.001,89117.0,89116.0,0.06131265]
[1765101358371,0.003,89117.0,89116.0,0.06131265]
[1765101358572,0.002,89117.0,89116.0,0.06131265]
[1765101358768,0.003,89117.0,89116.0,0.06131265]
[1765101359270,0.002,89117.0,89116.0,0.06131265]
[1765101359627,0.003,89117.0,89116.0,0.06231265]
[1765101360417,0.003,89117.0,89116.0,0.001]
[1765101360632,0.003,89117.0,89116.0,0.01732]
[1765101360840,0.003,89117.0,89116.0,0.0404]
[1765101361296,0.003,89117.0,89116.0,0.06284265]
[1765101366290,0.002,89117.0,89116.0,0.06184265]
[1765101366702,0.01121843,89139.0,89136.0,0.01121881]
[1765101367105,0.02893843,89139.0,89136.0,0.01121881]
[1765101367307,0.02893843,89139.0,89136.0,0.01411881]
[1765101367488,0.01121843,89139.0,89136.0,0.01411881]
[1765101367914,0.00161287,89140.0,89137.0,0.23559239]
[1765101368134,0.002,89139.0,89137.0,0.01121868]
[1765101368777,0.005,89139.0,89137.0,0.01121868]
[1765101368978,0.005,89139.0,89138.0,0.22437119]
[1765101369253,0.05773732,89139.0,89137.0,0.23559236]
[1765101369620,0.05573732,89139.0,89137.0,0.01121868]
[1765101369888,0.05873732,89139.0,89137.0,0.01221868]
[1765101370094,0.06173732,89139.0,89137.0,0.01321868]
[1765101370477,0.06173732,89139.0,89137.0,0.23758993]
[1765101370887,0.006,89139.0,89137.0,0.23758993]
[1765101371090,0.006,89139.0,89138.0,0.02308]
[1765101371620,0.006,89139.0,89138.0,0.03808]
[1765101371822,0.003,89139.0,89138.0,0.03808]
[1765101372225,0.006,89139.0,89138.0,0.03908]
[1765101372640,0.003,89139.0,89138.0,0.03908]
[1765101373080,0.006,89139.0,89138.0,0.04008]
[1765101376677,0.006,89139.0,89138.0,0.06251711]
[1765101377094,0.003,89139.0,89138.0,0.06151711]
[1765101377244,0.05463962,89148.0,89145.0,0.01121767]
[1765101377450,0.05475751,89148.0,89145.0,0.01121767]
[1765101377725,0.05475751,89148.0,89145.0,0.03494767]
[1765101377872,0.05475751,89148.0,89146.0,0.01193]
[1765101378066,0.05475751,89148.0,89146.0,0.23628106]
[1765101378262,0.05475751,89148.0,89147.0,0.03873]
[1765101378464,0.00211789,89148.0,89147.0,0.03873]
[1765101378963,0.00011789,89148.0,89147.0,0.03873]
[1765101379300,0.00211789,89148.0,89147.0,0.03873]
[1765101379518,0.00011789,89148.0,89147.0,0.03873]
[1765101379710,0.00211789,89148.0,89147.0,0.03973]
[1765101380472,0.00511789,89148.0,89147.0,0.03973]
[1765101380855,0.00211789,89148.0,89147.0,0.03973]
[1765101381258,0.00511789,89148.0,89147.0,0.04073]
[1765101383931,0.00511789,89148.0,89147.0,0.06316485]
[1765101385484,0.00311789,89148.0,89147.0,0.06216485]
[1765101385918,0.00411789,89148.0,89147.0,0.06416485]
[1765101386278,0.00111789,89148.0,89147.0,0.06316485]
[1765101386706,0.00211789,89148.0,89147.0,0.06416485]
[1765101389370,0.00211789,89148.0,89147.0,0.08188485]
[1765101390275,0.00111789,89148.0,89147.0,0.08088485]
[1765101390484,0.00211789,89148.0,89147.0,0.08388485]
[1765101391217,0.00111789,89148.0,89147.0,0.08188485]
[1765101391418,0.00311789,89148.0,89147.0,0.08988485]
[1765101392046,0.00311789,89148.0,89147.0,0.41288485]
[1765101392249,0.00311789,89148.0,89147.0,0.39045]
[1765101392420,0.00311789,89148.0,89147.0,0.42412575]
[1765101392766,0.00211789,89148.0,89147.0,0.42112575]
[1765101393108,0.00311789,89148.0,89147.0,0.42812575]
[1765101394820,0.00111789,89148.0,89147.0,0.42012575]
[1765101395027,0.00111789,89148.0,89147.0,0.43412575]
[1765101395028,0.00311789,89148.0,89147.0,0.43412575]
[1765101406739,0.05573732,89177.0,89174.0,0.01121403]
[1765101406960,0.05746867,89177.0,89176.0,0.00597]
[1765101408126,0.07446867,89177.0,89176.0,0.00797]
[1765101408329,0.07446867,89177.0,89176.0,0.002]
[1765101408330,0.33712174,89177.0,89176.0,0.002]
[1765101408539,0.33212174,89177.0,89176.0,0.002]
[1765101408918,0.33712174,89177.0,89176.0,0.003]
[1765101409319,0.34754991,89177.0,89176.0,0.003]
[1765101409521,0.38123005,89177.0,89176.0,0.003]
[1765101410063,1.29150189,89177.0,89176.0,0.003]
[1765101410286,1.31553038,89177.0,89176.0,0.003]
[1765101410719,1.31053038,89177.0,89176.0,0.002]
[1765101410935,0.01121591,89159.0,89155.0,0.01121642]
[1765101411140,0.01121604,89158.0,89155.0,0.01121642]
[1765101411341,0.01121604,89158.0,89155.0,0.23554469]
[1765101411555,0.06713732,89159.0,89156.0,0.23553977]